[Event "Chinese League Div-A Rapid 2022"]
[Site "Fuling,Chongqing"]
[Date "2022.09.10"]
[Round "4.6"]
[White "Ma, Qun"]
[Black "Xiao, Tong"]
[Result "1-0"]
[ECO "B42"]
[WhiteElo "2666"]
[BlackElo "2027"]
[Annotator "TA"]
[PlyCount "113"]
[EventDate "2022.09.07"]
[EventType "team-tourn"]
[EventCountry "CHN"]
[SourceTitle "playchess.com"]
[Source "ChessBase"]
[SourceQuality "1"]
[TimeControl "1500+10"]

{[%evp 13,113,50,44,54,48,21,21,14,69,62,130,122,133,103,100,89,165,163,135,90,165,218,252,252,381,380,362,367,342,350,413,274,486,412,397,386,334,150,150,145,150,150,146,127,130,130,128,122,127,127,129,128,134,141,134,128,275,268,255,0,128,0,226,181,283,274,502,492,629,628,617,617,611,608,1795,1547,29959,29963,29960,29963,29974,29967,29972,29969,29967,29957,29958,2237,1500,1446,29960,11578,5206,29967,29956,29962,29974,29975,29975,29976,29966,29966]} 1. e4 {[%emt 0:00:05]} c5 {[%emt 0:00:14]} 2. Nf3 {[%emt 0:00:02]} e6 {[%emt 0:00:03]} 3. d4 {[%emt 0:00:16]} cxd4 {[%emt 0:00:02]} 4. Nxd4 {[%emt 0:00:02]} a6 {[%emt 0:00:02]} 5. Bd3 {[%emt 0:00:05]} Nc6 {[%emt 0:00:03]} 6. Nxc6 {[%emt 0:00:21]} dxc6 {[%emt 0:00:02]} 7. O-O {[%emt 0:00:12]} e5 {[%emt 0:00:02]} 8. Nd2 {[%emt 0:00:23] B42: Sicilian: Kan Variation: 5 Bd3.} Be6 {[%emt 0:00:05]} 9. Qe2 $5 {[%emt 0:04:09][%mdl 4] Exploring less charted territory.} Nf6 {[%emt 0:00:42] [#]} 10. Bc4 $146 {[%emt 0:00:57] The position is equal.} ({Predecessor:} 10. a4 Bc5 11. Nc4 Bxc4 12. Bxc4 O-O 13. Bg5 Qe7 14. Rfd1 Rad8 15. Qf3 Rxd1+ 16. Rxd1 {½-½ (23) Nemeth,M (2499)-Izsak,G (2444) Hungary 2015}) 10... Bxc4 {[%emt 0:01:42]} ({Black should play} 10... Qd7 $11) 11. Nxc4 $14 {[%emt 0:00:02]} Nd7 {[%emt 0:00:21]} (11... Qc7 $14) 12. Rd1 $16 {[%emt 0:01:23][%cal Bf1d1,Bd1d2,Bd2d6][%mdl 32] Black must now prevent Be3.} Qc7 {[%emt 0:00:26]} 13. Be3 {[%emt 0:00:21][%cal Od1d7] Rxd7! is the strong threat.} Rd8 {[%emt 0:01:25]} 14. a4 {[%emt 0:03:18]} Be7 {[%emt 0:01:29]} (14... b5 $16) 15. Qg4 $1 $36 {[%emt 0:00:20][%mdl 2048] Black is under strong pressure.} Kf8 {[%emt 0:02:20]} 16. Rd2 {[%emt 0:04:25] Threatens to win with Rad1. White is much more active.} h5 {[%emt 0:01:38] [#]} (16... b5 $16) 17. Qh3 $1 {[%emt 0:00:23]} b5 {[%emt 0:01:10]} 18. Rad1 {[%emt 0:01:02][%cal Rd2d7]} Ke8 {[%emt 0:02:22]} (18... bxc4 {was called for.} 19. Rxd7 Rxd7 20. Qxd7 (20. Rxd7 Qa5 $18) 20... Qxd7 21. Rxd7 Ke8) 19. Nd6+ {[%emt 0:01:10]} Bxd6 {[%emt 0:00:04]} 20. Rxd6 {[%emt 0:00:03]} Ke7 {[%emt 0:00:18]} 21. axb5 {[%emt 0:01:30]} (21. Bg5+ Nf6 22. R6d3 Rxd3 23. cxd3 (23. Qxd3 Rd8 $14) 23... Qd7 $16) 21... axb5 {[%emt 0:00:08]} 22. R6d2 {[%emt 0:01:15]} (22. Bg5+ Nf6 23. Rxd8 Rxd8 24. Qxh5 Rxd1+ 25. Qxd1 Ke6 $16) 22... f6 $2 {[%emt 0:00:55]} (22... c5 23. Qg3 (23. Bg5+ f6 $16) 23... Nf6 24. Rxd8 (24. Qxg7 $2 Rdg8 $19) 24... Rxd8 25. Rxd8 h4) 23. b4 {[%emt 0:00:50]} Nb8 {[%emt 0:03:09]} 24. Rxd8 {[%emt 0:02:29]} Rxd8 {[%emt 0:00:02][%cal Rd8d1]} 25. Qxh5 {[%emt 0:00:20]} (25. Ra1 $18 {and the rest is easy.} g6 26. f4) 25... Rxd1+ $16 {[%emt 0:00:04]} 26. Qxd1 $18 {[%emt 0:00:03][%mdl 4096] Endgame KQB-KQN} Nd7 {[%emt 0:00:13]} 27. h4 {[%emt 0:00:13]} c5 {[%emt 0:00:50]} 28. Qg4 {[%emt 0:01:53]} Kf7 {[%emt 0:00:46]} 29. bxc5 {[%emt 0:00:13]} Nxc5 {[%emt 0:00:04]} 30. Qh5+ {[%emt 0:01:37]} Kf8 {[%emt 0:00:04]} 31. Qh8+ {[%emt 0:00:02]} Kf7 {[%emt 0:00:01] [#]} 32. Qa8 $1 {[%emt 0:00:37] Against Qc6. aiming for Qd5+.} b4 {[%emt 0:00:45]} 33. Qd5+ {[%emt 0:00:12]} Ne6 {[%emt 0:00:01]} 34. Kh2 {[%emt 0:00:14]} Ke7 {[%emt 0:00:18]} (34... Qc8 $16 {keeps fighting.} 35. Qd2 Qc7) 35. Bd2 {[%emt 0:00:04]} Qb6 {[%emt 0:00:13]} 36. Be3 {[%emt 0:00:09]} ({Better is} 36. Kg3 $18) 36... Qc7 $16 {[%emt 0:00:13]} 37. Bd2 {[%emt 0:00:20]} (37. Qb5 $16) 37... Qb6 $18 {[%emt 0:00:03] Black is on the road to losing.} 38. Kg1 {[%emt 0:00:12]} Nd4 {[%emt 0:00:40]} (38... Kf7 $142 39. Qd7+ Kg8) 39. Qc4 {[%emt 0:00:03]} Nc6 {[%emt 0:00:46]} (39... Ne6 {might work better.} 40. Bxb4+ Kf7) 40. Qg8 {[%emt 0:00:03]} Qc5 {[%emt 0:00:48]} 41. Qxg7+ {[%emt 0:00:03]} Ke6 {[%emt 0:00:01]} 42. Qg8+ {[%emt 0:00:06]} Ke7 {[%emt 0:00:04]} 43. Qb3 {[%emt 0:00:11]} Qb5 {[%emt 0:00:36]} 44. h5 {[%emt 0:00:35] White wants to mate with h6.} Qe2 {[%emt 0:00:24]} 45. Bxb4+ {[%emt 0:00:03]} Nxb4 {[%emt 0:00:06]} 46. Qxb4+ {[%emt 0:00:01] KQ-KQ} Kd7 {[%emt 0:00:04]} 47. Qa4+ {[%emt 0:00:05]} Kc7 {[%emt 0:00:13]} 48. Qa5+ {[%emt 0:00:03]} Kd7 {[%emt 0:00:09]} 49. Qd5+ {[%emt 0:00:03]} Ke7 {[%emt 0:00:08]} 50. Qb7+ {[%emt 0:00:02]} (50. Qc5+ $142 Kd7 51. Qd5+ Ke7 52. Qb7+ Kd6 53. Qb6+ Ke7 54. Qc7+ Kf8 55. Qd8+ Kg7 56. Qe7+ Kh6 57. Qxf6+ Kxh5 58. Qxe5+ Kh6 59. Qf6+ Kh7 60. Qf5+ Kg8 61. e5) 50... Kd6 {[%emt 0:00:07]} 51. Qb6+ {[%emt 0:00:12]} Ke7 {[%emt 0:00:02]} 52. Qc7+ {[%emt 0:00:01]} Ke6 {[%emt 0:00:09]} 53. Qc8+ {[%emt 0:00:02]} Ke7 {[%emt 0:00:01] White mates.} 54. Qf5 {[%emt 0:00:32]} Qxc2 {[%emt 0:00:03]} 55. g3 {[%emt 0:00:05]} Qc1+ {[%emt 0:00:45]} 56. Kg2 {[%emt 0:00:01]} Qh6 {[%emt 0:00:02]} 57. Qg6 {[%emt 0:00:05] Weighted Error Value: White=0.24 (precise) /Black=0.44} 1-0

[Event "Chinese League Div-A Rapid 2022"]
[Site "Fuling,Chongqing"]
[Date "2022.09.10"]
[Round "4.7"]
[White "Xu, Zhihang"]
[Black "Zhou, Weiqi"]
[Result "0-1"]
[ECO "D37"]
[WhiteElo "2489"]
[BlackElo "2597"]
[Annotator "TA"]
[PlyCount "116"]
[EventDate "2022.09.07"]
[EventType "team-tourn"]
[EventCountry "CHN"]
[SourceTitle "playchess.com"]
[Source "ChessBase"]
[SourceQuality "1"]
[TimeControl "1500+10"]

{[%evp 9,116,8,19,16,10,13,20,12,13,10,17,12,19,10,27,-8,18,-25,-27,-25,17,3,11,18,35,20,31,35,45,38,61,62,100,89,77,89,140,140,184,125,123,118,133,121,140,30,29,35,35,8,21,27,14,26,22,20,64,66,55,64,48,56,113,22,39,22,202,81,81,77,82,68,79,86,92,52,106,86,353,352,328,331,310,0,243,161,159,130,133,138,173,173,261,241,282,265,312,305,1255,1209,1466,8,8,-29983,-29984,-29984,-29985,-29985,-29986]} 1. d4 {[%emt 0:00:03]} d5 {[%emt 0:00:02]} 2. c4 {[%emt 0:00:02]} e6 {[%emt 0:00:02]} 3. Nf3 {[%emt 0:00:10]} Nf6 {[%emt 0:00:03]} 4. Nc3 {[%emt 0:00:12]} a6 {[%emt 0:00:12]} 5. c5 {[%emt 0:00:20]} b6 {[%emt 0:00:10]} 6. cxb6 {[%emt 0:00:02] D37: Queen's Gambit Declined: 5 Bf4.} cxb6 {[%emt 0:00:16]} 7. Bf4 {[%emt 0:00:12]} Bd6 {[%emt 0:00:28]} 8. e3 {[%emt 0:00:03] The position is equal.} O-O {[%emt 0:00:58]} 9. Bd3 {[%emt 0:00:20]} Bb7 {[%emt 0:00:16]} 10. O-O {[%emt 0:00:06]} Nc6 {[%emt 0:01:34]} 11. Rc1 {[%emt 0:00:59]} b5 {[%emt 0:01:57][%cal Bb6b5,Bb5b4][%mdl 32] [#]} 12. a4 $146 {[%emt 0:02:43]} ({Predecessor:} 12. Bg5 Be7 13. Qe2 Ne4 14. Bxe7 Nxe7 15. Nd2 f5 16. f3 Nd6 17. Nb3 Ng6 18. Nc5 {0-1 (50) Lopez,H (2181)-Bernardo,D (1890) Olongapo City 2015}) 12... b4 {[%emt 0:00:53]} 13. Nb1 {[%emt 0:00:11]} Bxf4 {[%emt 0:01:22]} 14. exf4 {[%emt 0:00:02][%cal Be3f4,Bf4f5][%mdl 32]} Qd6 {[%emt 0:00:03]} 15. g3 {[%emt 0:00:05]} Na5 {[%emt 0:01:44][%cal Oa5c4]} 16. Nbd2 {[%emt 0:02:57]} Rfc8 {[%emt 0:01:23] Inhibits Rc5.} 17. Qe2 {[%emt 0:00:25]} b3 {[%emt 0:02:50]} 18. Ne5 {[%emt 0:02:03]} h6 {[%emt 0:00:02]} 19. f5 {[%emt 0:02:04]} Rxc1 {[%emt 0:02:24]} 20. Rxc1 {[%emt 0:00:02]} Rc8 {[%emt 0:00:03] Inhibits Rc5.} 21. Rxc8+ {[%emt 0:02:03]} Bxc8 {[%emt 0:00:02]} 22. Qd1 $1 {[%emt 0:01:19]} Bd7 {[%emt 0:04:48]} (22... exf5 $142 23. Nxb3 Nxb3 24. Qxb3 Ne4) 23. fxe6 {[%emt 0:01:18]} (23. Nxb3 Bxa4 24. Qa1 Bxb3 $16) 23... Qxe6 {[%emt 0:01:01] [#]} 24. Nxb3 {[%emt 0:01:36]} (24. Qc1 $1 $18) 24... Bxa4 $16 {[%emt 0:00:16]} 25. Qa1 {[%emt 0:00:02]} Nxb3 {[%emt 0:00:06]} 26. Qxa4 {[%emt 0:00:02]} Qb6 {[%emt 0:00:04]} 27. Qxa6 {[%emt 0:01:33]} (27. Nc6 $16) 27... Qxa6 $11 {[%emt 0:00:15]} 28. Bxa6 {[%emt 0:00:03]} Nxd4 $16 {[%emt 0:00:01][%mdl 4096] Endgame KBN-KNN} 29. b4 {[%emt 0:00:56] aiming for b5.} Ne4 {[%emt 0:00:07]} 30. f3 {[%emt 0:02:26][%cal Bf2f3,Bf3f4,Bf4f5][%mdl 32]} Nc3 {[%emt 0:00:15]} 31. Kf2 {[%emt 0:00:25]} Kf8 {[%emt 0:00:41]} 32. Bd3 {[%emt 0:00:45]} Ke7 {[%emt 0:02:02]} 33. Ke3 {[%emt 0:00:16]} Ne6 {[%emt 0:00:01]} 34. Kd2 {[%emt 0:01:08]} Na4 {[%emt 0:00:15]} 35. f4 {[%emt 0:00:59]} f6 {[%emt 0:00:04]} (35... Nb6 $14) 36. Nf3 {[%emt 0:00:01]} (36. Ng6+ $16 Kd6 37. Nh4) 36... g5 $1 $11 {[%emt 0:00:19]} 37. f5 {[%emt 0:00:41]} g4 $2 {[%emt 0:00:43]} (37... Nf8 $11 {and Black has nothing to worry.}) 38. Nh4 {[%emt 0:00:28]} (38. fxe6 $18 {is the precise move to win.} gxf3 39. Bf5 (39. Ke3 Kxe6 40. h4 Ke5 $11)) 38... Ng5 {[%emt 0:00:17]} 39. Be2 {[%emt 0:00:05]} h5 {[%emt 0:00:18]} 40. Ng6+ {[%emt 0:00:07]} Kd6 {[%emt 0:00:01]} 41. Nf4 {[%emt 0:00:02]} Ke5 {[%emt 0:00:09]} 42. Nxh5 {[%emt 0:00:13]} Kxf5 {[%emt 0:00:32]} ({Black should play} 42... Ne4+ $14 43. Kc2 Kxf5) 43. Nf4 {[%emt 0:01:51]} Ne4+ $2 {[%emt 0:01:27][%mdl 8192] [#]} (43... d4 $16) 44. Ke3 $1 $18 {[%emt 0:00:01]} Ke5 {[%emt 0:00:56]} 45. Nd3+ {[%emt 0:00:24]} ({Less strong is} 45. Bxg4 d4+ 46. Kf3 Nac3 47. Nd3+ Kd5 $16) 45... Kf5 {[%emt 0:00:03]} 46. Nf4 {[%emt 0:00:01]} Ke5 {[%emt 0:00:01]} 47. Bxg4 {[%emt 0:00:15] Threatens to win with Nd3+.} d4+ {[%emt 0:00:01]} 48. Ke2 {[%emt 0:00:02] And now Ng6+ would win.} Nac3+ {[%emt 0:01:06]} 49. Ke1 {[%emt 0:00:03]} Nd6 {[%emt 0:00:30]} 50. Bf3 {[%emt 0:00:10]} Nc4 {[%emt 0:00:03]} (50... Nf5 {is a better defense.} 51. Kd2 Na2) 51. Nd3+ {[%emt 0:00:02]} Kf5 {[%emt 0:00:04]} 52. h4 {[%emt 0:00:41]} Ne5 {[%emt 0:00:11]} 53. Be2 {[%emt 0:00:17] Hoping for Nxe5.} Ke4 {[%emt 0:00:20]} (53... Nd5 54. b5 Nf7) 54. Nxe5 {[%emt 0:00:06]} fxe5 {[%emt 0:00:01]} 55. b5 $2 {[%emt 0:00:34]} (55. Bg4 $18 {h5 is the strong threat.} Ke3 56. h5) 55... Ke3 $1 $11 {[%emt 0:00:01]} 56. b6 $2 {[%emt 0:00:13][%mdl 8192]} Nxe2 {[%emt 0:00:01] Black mates.} 57. b7 {[%emt 0:00:00]} d3 {[%emt 0:00:01][%cal Bd4d3,Bd3d2][%mdl 32]} 58. b8=Q {[%emt 0:00:08]} d2+ {[%emt 0:00:02] A wild game.  Weighted Error Value: White=0.46/Black=0.26 (precise)} 0-1

[Event "Chinese League Div-A Rapid 2022"]
[Site "Fuling,Chongqing"]
[Date "2022.09.10"]
[Round "4.8"]
[White "Bai, Jinshi"]
[Black "Zou, Chen"]
[Result "1-0"]
[ECO "E94"]
[WhiteElo "2586"]
[BlackElo "2432"]
[Annotator "TA"]
[PlyCount "78"]
[EventDate "2022.09.07"]
[EventType "team-tourn"]
[EventCountry "CHN"]
[SourceTitle "playchess.com"]
[Source "ChessBase"]
[SourceQuality "1"]
[TimeControl "1500+10"]

{[%evp 20,78,57,45,63,56,61,10,64,59,101,80,81,81,97,100,116,91,94,89,82,86,83,93,282,114,140,100,103,101,103,38,50,53,76,37,54,0,0,0,0,0,116,104,88,86,163,162,376,364,423,463,448,464,465,459,454,416,839,797,675]} 1. d4 {[%emt 0:00:04]} Nf6 {[%emt 0:00:06]} 2. Nf3 {[%emt 0:00:03]} g6 {[%emt 0:00:07]} 3. c4 {[%emt 0:00:05]} Bg7 {[%emt 0:00:02]} 4. Nc3 {[%emt 0:00:03]} O-O {[%emt 0:00:09]} 5. e4 {[%emt 0:00:04]} d6 {[%emt 0:00:03]} 6. Be2 {[%emt 0:00:03]} e5 {[%emt 0:00:26]} 7. Be3 {[%emt 0:00:03]} Ng4 {[%emt 0:01:03][%cal Bf6g4,Bg4h6,Bh6f7][%mdl 32]} 8. Bg5 {[%emt 0:00:02]} f6 {[%emt 0:00:02]} 9. Bh4 {[%emt 0:00:08]} Nd7 {[%emt 0:01:43]} 10. O-O {[%emt 0:00:37]} Nh6 {[%emt 0:00:18]} 11. Qd2 {[%emt 0:01:59]} Nf7 {[%emt 0:00:17] E94: King's Indian: Classical: 6 Be2 e5 7 0-0: Various Black 7th moves.} 12. Rad1 {[%emt 0:00:44]} c6 {[%emt 0:02:28]} 13. b4 {[%emt 0:02:37]} ({Better is} 13. Rfe1 $14) 13... Qe8 {[%emt 0:03:13]} (13... a5 $11 14. b5 g5 15. dxe5 dxe5) 14. Rfe1 $14 {[%emt 0:01:20]} h5 {[%emt 0:01:19]} 15. h3 {[%emt 0:00:32]} Bh6 {[%emt 0:00:50]} 16. Qc2 {[%emt 0:00:21] [#]} Kg7 $146 {[%emt 0:03:04]} ({Predecessor:} 16... Bf4 17. a3 Kg7 18. Na4 Rg8 19. c5 dxc5 20. Nxc5 Nxc5 21. bxc5 g5 22. Bg3 g4 23. hxg4 hxg4 {1-0 (39) Schroer,J (2315)-Meyer,J New York 1984}) 17. Bg3 {[%emt 0:00:24]} b6 {[%emt 0:02:16] Inhibits c5.} 18. b5 {[%emt 0:04:07]} Bb7 {[%emt 0:02:29]} 19. bxc6 {[%emt 0:00:13]} Bxc6 {[%emt 0:00:03]} 20. Nd5 {[%emt 0:01:16]} Rc8 {[%emt 0:01:09] Inhibits Nc7.} 21. Qb2 {[%emt 0:00:00] White is much more active.} Nb8 $2 {[%emt 0:04:34] [#]} (21... Qd8 $16) 22. Qa3 {[%emt 0:02:21]} (22. Nxf6 $1 $18 {[%mdl 512] is the precise move to win.} Kxf6 23. dxe5+ dxe5 24. Bxe5+ $1 {[%mdl 512]} Nxe5 25. Nxe5) 22... Bxd5 {[%emt 0:00:19]} 23. cxd5 {[%emt 0:00:28]} Qe7 {[%emt 0:00:32]} 24. Bb5 {[%emt 0:04:39]} Rc7 {[%emt 0:00:30]} 25. Ba4 {[%emt 0:00:15]} (25. Kh1 $16) 25... Rfc8 {[%emt 0:00:13]} 26. Qb2 {[%emt 0:00:02]} Kh7 {[%emt 0:00:47]} 27. Bh4 {[%emt 0:00:21][%cal Bg3h4,Bh4f6,Bf6b2][%mdl 32]} Bf4 {[%emt 0:00:48]} 28. dxe5 {[%emt 0:03:38]} (28. Kh1 $1 $14) 28... dxe5 $11 {[%emt 0:00:15]} 29. g3 {[%emt 0:00:05]} Bh6 {[%emt 0:00:10] ...g5 is the strong threat.} 30. Nxe5 {[%emt 0:00:15]} Qxe5 {[%emt 0:00:26]} (30... Nxe5 $11 {keeps the balance.} 31. d6 Nf3+ 32. Kf1 {[#]} Qe6 $1 33. dxc7 Qxh3+ 34. Ke2 Qg4 35. cxb8=N (35. cxb8=R Ne5+ 36. Kf1 Qh3+ 37. Ke2 Qg4+ 38. Kf1 Qh3+ 39. Ke2 Qg4+ $11) 35... Nxe1+ 36. Kf1 Qh3+ 37. Ke2 Qg4+ 38. Kxe1 Qxe4+ 39. Kf1 Qh1+ 40. Ke2 Qe4+ 41. Kf1 Qh1+ 42. Ke2 Qe4+ 43. Kf1) 31. Bxf6 $16 {[%emt 0:00:01]} Qxb2 {[%emt 0:00:03]} 32. Bxb2 {[%emt 0:00:01] A strong pair of Bishops.} Na6 {[%emt 0:00:30]} (32... Ng5 $16) 33. d6 $36 {[%emt 0:00:10][%cal Bd5d6,Bd6d7][%mdl 3104] White has strong compensation. Black is under strong pressure.} Rb7 {[%emt 0:00:15]} (33... Nxd6 {was necessary.} 34. Rxd6 Bf8) 34. d7 {[%emt 0:00:58]} Rf8 {[%emt 0:00:03]} 35. e5 {[%emt 0:00:12]} ({Less strong is} 35. Bb3 Rd8 $18) 35... Nc5 {[%emt 0:00:05]} 36. e6 {[%emt 0:00:03]} Nxa4 {[%emt 0:00:06]} 37. e7 {[%emt 0:00:06]} Nxb2 {[%emt 0:00:11]} 38. e8=Q {[%emt 0:00:46]} Nxd1 {[%emt 0:00:03]} (38... Rb8 $142) 39. Re7 {[%emt 0:00:40]} ({Not} 39. Rxd1 Rb8 40. Qe4 Bg5 $16) 39... Rxe8 {[%emt 0:00:29] Weighted Error Value: White=0.19 (very precise) /Black=0.42} 1-0

[Event "Chinese League Div-A Rapid 2022"]
[Site "Fuling,Chongqing"]
[Date "2022.09.10"]
[Round "4.9"]
[White "Chen, Yining"]
[Black "Zhai, Mo"]
[Result "0-1"]
[ECO "E12"]
[WhiteElo "1745"]
[BlackElo "2374"]
[Annotator "RC"]
[PlyCount "87"]
[EventDate "2022.09.07"]
[EventType "team-tourn"]
[EventCountry "CHN"]
[SourceTitle "playchess.com"]
[Source "ChessBase"]
[SourceQuality "1"]
[TimeControl "1500+10"]

1. d4 {[%emt 0:00:03]} Nf6 {[%emt 0:00:05]} 2. c4 {[%emt 0:00:04]} e6 {[%emt 0:00:04]} 3. Nf3 {[%emt 0:00:05]} b6 {[%emt 0:00:07]} 4. a3 {[%emt 0:00:09]} Bb7 {[%emt 0:00:12]} 5. Nc3 {[%emt 0:00:11]} d5 {[%emt 0:00:13]} 6. cxd5 {[%emt 0:01:15]} Nxd5 {[%emt 0:00:09]} 7. Qc2 {[%emt 0:00:12]} Be7 {[%emt 0:00:20]} 8. Nxd5 {[%emt 0:01:30]} Bxd5 {[%emt 0:01:08]} 9. e4 {[%emt 0:00:42]} Bb7 {[%emt 0:00:11]} 10. Bf4 {[%emt 0:00:58]} Bd6 {[%emt 0:05:08]} 11. Bb5+ {[%emt 0:02:07]} c6 {[%emt 0:00:35]} 12. Bxd6 {[%emt 0:00:07]} Qxd6 {[%emt 0:00:15]} 13. Bd3 {[%emt 0:00:18]} Nd7 {[%emt 0:02:54]} 14. e5 {[%emt 0:01:55]} Qe7 {[%emt 0:00:45]} 15. Be4 {[%emt 0:02:36]} Rc8 {[%emt 0:00:47]} 16. Nd2 {[%emt 0:01:00]} Ba6 {[%emt 0:02:03]} 17. b4 {[%emt 0:03:41]} h6 {[%emt 0:02:10]} 18. Nc4 {[%emt 0:01:34]} Bxc4 {[%emt 0:03:54]} 19. Qxc4 {[%emt 0:00:02]} O-O {[%emt 0:00:50]} 20. Bxc6 {[%emt 0:02:03]} Qh4 {[%emt 0:01:07]} 21. Qc3 {[%emt 0:03:51]} Nb8 {[%emt 0:01:44]} 22. b5 {[%emt 0:01:55]} Nxc6 {[%emt 0:00:09]} 23. bxc6 {[%emt 0:00:03]} Qe4+ {[%emt 0:00:06]} 24. Qe3 {[%emt 0:00:53]} Qxg2 {[%emt 0:00:33]} 25. Kd2 {[%emt 0:00:16]} Qxc6 {[%emt 0:00:10]} 26. Rhc1 {[%emt 0:00:32]} Qa4 {[%emt 0:00:54]} 27. Qd3 {[%emt 0:00:38]} Rfd8 {[%emt 0:00:40]} 28. Ke3 {[%emt 0:00:14]} Qd7 {[%emt 0:00:51]} 29. Rc3 {[%emt 0:00:28]} Qe7 {[%emt 0:00:18]} 30. Rac1 {[%emt 0:00:29]} Rxc3 {[%emt 0:00:14]} 31. Rxc3 {[%emt 0:00:02]} Qg5+ {[%emt 0:00:11]} 32. f4 {[%emt 0:00:20]} Qg1+ {[%emt 0:00:06]} 33. Ke4 {[%emt 0:00:14]} Qxh2 {[%emt 0:00:14]} 34. Rc7 {[%emt 0:00:10]} Qg2+ {[%emt 0:00:19]} 35. Ke3 {[%emt 0:00:04]} Qg1+ {[%emt 0:00:05]} 36. Ke4 {[%emt 0:00:16]} Qe1+ {[%emt 0:00:19]} 37. Kf3 {[%emt 0:00:06]} Qa5 {[%emt 0:00:10]} 38. Ke3 {[%emt 0:00:12]} Qa4 {[%emt 0:00:30]} 39. Rc4 {[%emt 0:00:09]} Qd7 {[%emt 0:00:14]} 40. Qe4 {[%emt 0:00:06]} Qe7 {[%emt 0:00:13]} 41. Qd3 {[%emt 0:00:13]} h5 {[%emt 0:00:09]} 42. Rc2 {[%emt 0:00:08]} Qh4 {[%emt 0:00:16]} 43. Rf2 {[%emt 0:00:13]} Qg3+ {[%emt 0:00:03]} 44. Ke2 {[%emt 0:00:26]} 0-1

[Event "Chinese League Div-A Rapid 2022"]
[Site "Fuling,Chongqing"]
[Date "2022.09.10"]
[Round "4.10"]
[White "Zhou, Guijue"]
[Black "Hou, Yifan"]
[Result "0-1"]
[ECO "B23"]
[WhiteElo "2225"]
[BlackElo "2650"]
[Annotator "TA"]
[PlyCount "44"]
[EventDate "2022.09.07"]
[EventType "team-tourn"]
[EventCountry "CHN"]
[SourceTitle "playchess.com"]
[Source "ChessBase"]
[SourceQuality "1"]
[TimeControl "1500+10"]

{[%evp 9,44,-38,-26,-26,-22,-25,0,-43,-29,-52,-53,-125,-104,-137,-116,-231,-191,-304,-308,-307,-290,-343,-337,-458,-459,-547,-526,-913,-843,-757,-722,-1322,-1348,-1314,-1245,-1881,-1782]} 1. e4 {[%emt 0:00:02]} c5 {[%emt 0:00:00]} 2. Nc3 {[%emt 0:00:05]} e6 {[%emt 0:00:43]} 3. f4 {[%emt 0:00:28]} Nc6 {[%emt 0:01:04]} 4. g3 {[%emt 0:00:20]} d5 {[%emt 0:03:11]} 5. e5 {[%emt 0:01:02]} g5 {[%emt 0:01:56]} 6. d3 {[%emt 0:02:21] B23: Closed Sicilian: Lines without g3.} gxf4 {[%emt 0:00:02]} 7. Bxf4 {[%emt 0:00:02] [#]} Nge7 $146 {[%emt 0:00:02]} ({Predecessor:} 7... Bg7 8. Nf3 Nge7 9. Bg2 Ng6 10. Bg5 Qa5 11. O-O Ncxe5 12. Nxe5 Bxe5 13. Qf3 O-O {0-1 (22) Al Marzouqi,A (1989)-Al Huwar,J (2313) Fujairah 2008}) 8. Nf3 {[%emt 0:00:07] The position is equal.} Ng6 {[%emt 0:00:17]} 9. Bg5 {[%emt 0:01:25]} Be7 {[%emt 0:01:41]} 10. Bf4 {[%emt 0:03:14]} (10. Bxe7 $15 Qxe7 11. Bg2) 10... Qb6 $17 {[%emt 0:05:05]} 11. Qc1 {[%emt 0:04:28]} Bd7 {[%emt 0:00:31]} 12. h4 {[%emt 0:00:29]} (12. Ne2 $17 {was worth a try.}) 12... Rg8 {[%emt 0:00:28]} 13. h5 {[%emt 0:00:53]} (13. Ne2 {was called for.}) 13... Nxf4 $19 {[%emt 0:00:02]} 14. gxf4 {[%emt 0:00:01]} O-O-O {[%emt 0:00:39]} 15. Ne2 {[%emt 0:00:08]} f6 {[%emt 0:00:08] And now ...fxe5 would win.} 16. b3 {[%emt 0:00:55]} fxe5 {[%emt 0:00:08] Black is clearly winning.} 17. fxe5 {[%emt 0:00:04]} Rdf8 {[%emt 0:00:42]} 18. Qe3 {[%emt 0:00:09]} d4 {[%emt 0:00:14]} 19. Qe4 {[%emt 0:02:15]} Nb4 {[%emt 0:00:25]} 20. Kd2 {[%emt 0:03:00]} Bc6 {[%emt 0:00:08]} 21. Qxh7 {[%emt 0:00:07]} Qc7 {[%emt 0:00:51]} 22. Bh3 {[%emt 0:00:25]} Bxf3 {[%emt 0:00:31] White did not feel at home in the position after the opening.  Weighted Error Value: White=1.28/Black=0.10 (very precise)} 0-1